[Event "EYCC Girls-U16 2019"]
[Site "Bratislava"]
[Date "2019.08.04"]
[Round "3.21"]
[White "Mkrtchyan, Mariam"]
[Black "Dejanovic, Tereza"]
[Result "1-0"]
[ECO "D02"]
[WhiteElo "1981"]
[BlackElo "1834"]
[Annotator "NA"]
[PlyCount "111"]
[EventDate "2019.08.02"]
[EventType "swiss"]
[EventCountry "SVK"]
[SourceTitle "playchess.com"]
[Source "ChessBase"]
[SourceQuality "1"]
[TimeControl "40/5400+30:1800+30"]

1. d4 {[%emt 0:00:00]} d5 {[%emt 0:00:00]} 2. Nf3 {[%emt 0:00:00]} Nf6 {[%emt 0:00:00]} 3. g3 {[%emt 0:00:00]} e6 {[%emt 0:00:00]} 4. Bg2 {[%emt 0:00:00]} b5 {[%emt 0:00:00]} 5. O-O {[%emt 0:00:00]} Bb7 {[%emt 0:00:00]} 6. c3 {[%emt 0:06:27]} Nbd7 {[%emt 0:01:58]} 7. a4 {[%emt 0:04:33]} a6 {[%emt 0:00:04]} 8. Bg5 {[%emt 0:08:17]} Be7 {[%emt 0:03:32]} 9. Nbd2 {[%emt 0:02:58]} c5 {[%emt 0:08:02]} 10. Qc2 {[%emt 0:12:15]} O-O {[%emt 0:02:12]} 11. Rfd1 {[%emt 0:06:09]} c4 {[%emt 0:03:37]} 12. Bxf6 {[%emt 0:13:56]} Nxf6 {[%emt 0:00:35]} 13. Ne5 {[%emt 0:00:33]} Nd7 {[%emt 0:06:47]} 14. f4 {[%emt 0:10:56]} f5 {[%emt 0:02:35]} 15. Nxd7 {[%emt 0:04:47]} Qxd7 {[%emt 0:00:08]} 16. Nf3 {[%emt 0:00:06]} Qc7 {[%emt 0:09:24]} 17. Qd2 {[%emt 0:01:03]} Qb6 {[%emt 0:03:57]} 18. Ne5 {[%emt 0:00:35]} Qd6 {[%emt 0:01:53]} 19. Rf1 {[%emt 0:02:26]} Bf6 {[%emt 0:03:17]} 20. g4 {[%emt 0:07:19]} g6 {[%emt 0:14:09]} 21. Qe3 {[%emt 0:03:49]} Bxe5 {[%emt 0:03:28]} 22. dxe5 {[%emt 0:01:53]} Qd7 {[%emt 0:02:07]} 23. Qg3 {[%emt 0:05:38]} Kh8 {[%emt 0:04:18]} 24. h4 {[%emt 0:01:02]} Rg8 {[%emt 0:02:52]} 25. g5 {[%emt 0:01:53]} Kg7 {[%emt 0:02:57]} 26. h5 {[%emt 0:00:45]} Rh8 {[%emt 0:00:29]} 27. Qh4 {[%emt 0:01:10]} Qd8 {[%emt 0:03:07]} 28. Bf3 {[%emt 0:01:44]} Qb6+ {[%emt 0:01:16]} 29. Kg2 {[%emt 0:00:23]} d4 {[%emt 0:01:27]} 30. Qf2 {[%emt 0:02:26]} Bxf3+ {[%emt 0:04:20]} 31. exf3 {[%emt 0:00:18]} bxa4 {[%emt 0:04:26]} 32. cxd4 {[%emt 0:01:20]} Rab8 {[%emt 0:00:43]} 33. h6+ {[%emt 0:00:21]} Kf7 {[%emt 0:00:12]} 34. Rxa4 {[%emt 0:00:36]} Qxb2 {[%emt 0:02:07]} 35. Rxc4 {[%emt 0:00:20]} Qxf2+ {[%emt 0:01:15]} 36. Rxf2 {[%emt 0:00:08]} Rhc8 {[%emt 0:00:56]} 37. Rxc8 {[%emt 0:01:28]} Rxc8 {[%emt 0:00:03]} 38. Ra2 {[%emt 0:00:08]} Ra8 {[%emt 0:00:27]} 39. Kf2 {[%emt 0:00:33]} Ke7 {[%emt 0:00:55]} 40. Ke3 {[%emt 0:00:00]} Kd7 {[%emt 0:00:00]} 41. d5 {[%emt 0:05:31]} exd5 {[%emt 0:05:57]} 42. Kd4 {[%emt 0:00:04]} Ke6 {[%emt 0:04:35]} 43. Rb2 {[%emt 0:02:02]} Ra7 {[%emt 0:01:30]} 44. Rb6+ {[%emt 0:00:28]} Ke7 {[%emt 0:00:27]} 45. Kxd5 {[%emt 0:00:06]} Rd7+ {[%emt 0:03:07]} 46. Kc4 {[%emt 0:02:25]} Ra7 {[%emt 0:05:57]} 47. Kb4 {[%emt 0:02:39]} a5+ {[%emt 0:02:25]} 48. Ka4 {[%emt 0:00:14]} Kf7 {[%emt 0:02:15]} 49. Rb5 {[%emt 0:02:15]} Ke7 {[%emt 0:02:38]} 50. Rxa5 {[%emt 0:02:34]} Rxa5+ {[%emt 0:00:57]} 51. Kxa5 {[%emt 0:00:04]} Kd7 {[%emt 0:01:44]} 52. Kb6 {[%emt 0:00:30]} Ke8 {[%emt 0:09:39]} 53. Kc6 {[%emt 0:00:08]} Kd8 {[%emt 0:00:29]} 54. Kd6 {[%emt 0:00:10]} Ke8 {[%emt 0:00:02]} 55. Ke6 {[%emt 0:00:07]} Kf8 {[%emt 0:00:07]} 56. Kd7 {[%emt 0:00:10]} 1-0

[Event "EYCC Girls-U16 2019"]
[Site "Bratislava"]
[Date "2019.08.04"]
[Round "3.22"]
[White "Juhasz, Judit"]
[Black "Rzali, Sabina"]
[Result "0-1"]
[ECO "C04"]
[WhiteElo "2050"]
[BlackElo "1691"]
[Annotator "NA"]
[PlyCount "134"]
[EventDate "2019.08.02"]
[EventType "swiss"]
[EventCountry "SVK"]
[SourceTitle "playchess.com"]
[Source "ChessBase"]
[SourceQuality "1"]
[TimeControl "40/5400+30:1800+30"]

1. e4 {[%emt 0:00:00]} e6 {[%emt 0:00:00]} 2. d4 {[%emt 0:00:00]} d5 {[%emt 0:00:00]} 3. Nd2 {[%emt 0:00:00]} Nc6 {[%emt 0:00:00]} 4. Ngf3 {[%emt 0:00:15]} Nf6 {[%emt 0:00:00]} 5. e5 {[%emt 0:00:11]} Nd7 {[%emt 0:00:04]} 6. Be2 {[%emt 0:00:28]} f6 {[%emt 0:00:21]} 7. exf6 {[%emt 0:00:27]} Qxf6 {[%emt 0:00:06]} 8. Nf1 {[%emt 0:00:40]} Bd6 {[%emt 0:00:58]} 9. Bg5 {[%emt 0:02:59]} Qf7 {[%emt 0:01:22]} 10. Ne3 {[%emt 0:01:39]} h6 {[%emt 0:09:02]} 11. Bh4 {[%emt 0:00:24]} Nf6 {[%emt 0:02:13]} 12. O-O {[%emt 0:05:12]} O-O {[%emt 0:05:33]} 13. c4 {[%emt 0:04:36]} dxc4 {[%emt 0:09:26]} 14. Nxc4 {[%emt 0:05:19]} Nd5 {[%emt 0:05:21]} 15. Bg3 {[%emt 0:06:10]} Nf4 {[%emt 0:07:31]} 16. Bxf4 {[%emt 0:05:49]} Qxf4 {[%emt 0:07:03]} 17. Qd3 {[%emt 0:05:57]} a6 {[%emt 0:06:24]} 18. g3 {[%emt 0:05:44]} Qf6 {[%emt 0:01:32]} 19. Rac1 {[%emt 0:07:10]} Rd8 {[%emt 0:08:33]} 20. a3 {[%emt 0:13:49]} Bc5 {[%emt 0:12:46]} 21. Nce5 {[%emt 0:21:19]} Bxd4 {[%emt 0:01:33]} 22. Ng4 {[%emt 0:06:23]} Qf5 {[%emt 0:02:55]} 23. Qxf5 {[%emt 0:00:35]} exf5 {[%emt 0:00:07]} 24. Bc4+ {[%emt 0:00:08]} Kf8 {[%emt 0:01:19]} 25. Nxd4 {[%emt 0:01:19]} Rxd4 {[%emt 0:00:58]} 26. Ne3 {[%emt 0:00:09]} Ne5 {[%emt 0:02:10]} 27. Bd5 {[%emt 0:01:28]} c6 {[%emt 0:00:26]} 28. Bg2 {[%emt 0:00:03]} Be6 {[%emt 0:01:40]} 29. Rc2 {[%emt 0:02:15]} Kf7 {[%emt 0:00:44]} 30. f4 {[%emt 0:00:29]} Nd7 {[%emt 0:01:44]} 31. Re1 {[%emt 0:01:49]} Nf6 {[%emt 0:01:13]} 32. Rce2 {[%emt 0:00:55]} Re8 {[%emt 0:01:17]} 33. Nc2 {[%emt 0:00:22]} Rdd8 {[%emt 0:00:19]} 34. Bf1 {[%emt 0:01:03]} Bd5 {[%emt 0:01:26]} 35. Re5 {[%emt 0:00:49]} Be4 {[%emt 0:00:56]} 36. Ne3 {[%emt 0:00:35]} g6 {[%emt 0:01:07]} 37. Bc4+ {[%emt 0:01:07]} Kf8 {[%emt 0:00:46]} 38. Re2 {[%emt 0:00:43]} Rd7 {[%emt 0:02:43]} 39. Kf2 {[%emt 0:00:29]} Red8 {[%emt 0:01:09]} 40. Re6 {[%emt 0:00:00]} Rd6 {[%emt 0:00:00]} 41. Rxd6 {[%emt 0:12:26]} Rxd6 {[%emt 0:01:21]} 42. Ke1 {[%emt 0:03:01]} b5 {[%emt 0:06:55]} 43. Ba2 {[%emt 0:01:48]} Bd3 {[%emt 0:02:10]} 44. Rd2 {[%emt 0:00:28]} Ne4 {[%emt 0:00:16]} 45. Rd1 {[%emt 0:00:18]} Ke7 {[%emt 0:01:48]} 46. g4 {[%emt 0:01:01]} Nf6 {[%emt 0:04:17]} 47. gxf5 {[%emt 0:03:23]} gxf5 {[%emt 0:03:40]} 48. Rc1 {[%emt 0:01:59]} Nh5 {[%emt 0:04:31]} 49. Rc5 {[%emt 0:01:14]} Nxf4 {[%emt 0:03:02]} 50. Rxf5 {[%emt 0:01:13]} Bxf5 {[%emt 0:01:49]} 51. Nxf5+ {[%emt 0:00:05]} Kd7 {[%emt 0:00:04]} 52. Nxd6 {[%emt 0:00:06]} Kxd6 {[%emt 0:00:01]} 53. Kd2 {[%emt 0:00:57]} c5 {[%emt 0:01:28]} 54. Ke3 {[%emt 0:01:39]} Ke5 {[%emt 0:00:27]} 55. Bb1 {[%emt 0:00:33]} Nd5+ {[%emt 0:01:06]} 56. Kd2 {[%emt 0:03:57]} c4 {[%emt 0:02:00]} 57. Bg6 {[%emt 0:01:26]} Kd4 {[%emt 0:00:48]} 58. Kc2 {[%emt 0:01:40]} Ne3+ {[%emt 0:01:18]} 59. Kb1 {[%emt 0:01:54]} a5 {[%emt 0:01:58]} 60. h3 {[%emt 0:01:18]} b4 {[%emt 0:00:45]} 61. axb4 {[%emt 0:00:22]} axb4 {[%emt 0:00:00]} 62. Kc1 {[%emt 0:00:35]} b3 {[%emt 0:01:08]} 63. Bf7 {[%emt 0:00:38]} Nf1 {[%emt 0:01:42]} 64. Be6 {[%emt 0:00:29]} Ng3 {[%emt 0:01:25]} 65. Kd2 {[%emt 0:00:34]} Ne4+ {[%emt 0:00:24]} 66. Kd1 {[%emt 0:00:34]} Nc5 {[%emt 0:00:08]} 67. Bf5 {[%emt 0:00:19]} Nd3 {[%emt 0:00:11]} 0-1

[Event "EYCC Girls-U16 2019"]
[Site "Bratislava"]
[Date "2019.08.04"]
[Round "3.23"]
[White "Walterova, Ema"]
[Black "Pipia, Ekaterine"]
[Result "0-1"]
[ECO "B06"]
[WhiteElo "1761"]
[BlackElo "1945"]
[Annotator "NA"]
[PlyCount "96"]
[EventDate "2019.08.02"]
[EventType "swiss"]
[EventCountry "SVK"]
[SourceTitle "playchess.com"]
[Source "ChessBase"]
[SourceQuality "1"]
[TimeControl "40/5400+30:1800+30"]

1. e4 {[%emt 0:00:00]} g6 {[%emt 0:00:00]} 2. d4 {[%emt 0:00:00]} Bg7 {[%emt 0:00:00]} 3. Nc3 {[%emt 0:00:00]} d6 {[%emt 0:00:00]} 4. Nf3 {[%emt 0:00:21]} a6 {[%emt 0:00:00]} 5. h3 {[%emt 0:00:13]} b5 {[%emt 0:00:00]} 6. a4 {[%emt 0:00:10]} b4 {[%emt 0:00:47]} 7. Nd5 {[%emt 0:00:10]} a5 {[%emt 0:00:52]} 8. Bc4 {[%emt 0:00:44]} e6 {[%emt 0:04:00]} 9. Ne3 {[%emt 0:06:08]} Bb7 {[%emt 0:03:04]} 10. d5 {[%emt 0:03:15]} e5 {[%emt 0:00:45]} 11. Ng4 {[%emt 0:07:23]} h5 {[%emt 0:05:14]} 12. Ne3 {[%emt 0:04:46]} Nf6 {[%emt 0:00:50]} 13. Nd2 {[%emt 0:08:31]} Nbd7 {[%emt 0:00:42]} 14. c3 {[%emt 0:03:06]} bxc3 {[%emt 0:02:19]} 15. bxc3 {[%emt 0:00:30]} O-O {[%emt 0:00:51]} 16. Rb1 {[%emt 0:02:18]} Qc8 {[%emt 0:05:29]} 17. Ba3 {[%emt 0:09:49]} Bh6 {[%emt 0:06:13]} 18. Qe2 {[%emt 0:09:05]} h4 {[%emt 0:05:52]} 19. Rb2 {[%emt 0:14:23]} Ba6 {[%emt 0:03:54]} 20. Bxa6 {[%emt 0:07:23]} Qxa6 {[%emt 0:00:36]} 21. c4 {[%emt 0:00:47]} Rab8 {[%emt 0:02:48]} 22. Rb5 {[%emt 0:00:26]} Qa7 {[%emt 0:06:37]} 23. O-O {[%emt 0:05:13]} Bxe3 {[%emt 0:06:14]} 24. Qxe3 {[%emt 0:01:00]} Qxe3 {[%emt 0:01:09]} 25. fxe3 {[%emt 0:00:01]} Rxb5 {[%emt 0:06:41]} 26. axb5 {[%emt 0:00:08]} Kg7 {[%emt 0:02:12]} 27. Rc1 {[%emt 0:02:02]} Rb8 {[%emt 0:00:36]} 28. Kf2 {[%emt 0:01:16]} Nh5 {[%emt 0:03:29]} 29. Ke2 {[%emt 0:02:49]} Ng3+ {[%emt 0:02:29]} 30. Kd3 {[%emt 0:02:44]} Kh6 {[%emt 0:03:13]} 31. Nf1 {[%emt 0:02:20]} Nh5 {[%emt 0:01:36]} 32. Nd2 {[%emt 0:00:31]} f5 {[%emt 0:01:35]} 33. Rf1 {[%emt 0:03:41]} Ng3 {[%emt 0:03:33]} 34. Rf2 {[%emt 0:01:34]} Rf8 {[%emt 0:04:16]} 35. exf5 {[%emt 0:03:10]} gxf5 {[%emt 0:00:01]} 36. Kc3 {[%emt 0:01:23]} e4 {[%emt 0:07:04]} 37. Nb3 {[%emt 0:00:35]} Ne5 {[%emt 0:04:16]} 38. Nd4 {[%emt 0:00:26]} Nd3 {[%emt 0:00:46]} 39. Rd2 {[%emt 0:00:34]} f4 {[%emt 0:07:57]} 40. exf4 {[%emt 0:00:00]} Nxf4 {[%emt 0:00:00]} 41. Bc1 {[%emt 0:12:53]} e3 {[%emt 0:09:51]} 42. Rd1 {[%emt 0:00:45]} Nxg2 {[%emt 0:08:46]} 43. Kd3 {[%emt 0:07:55]} Nf1 {[%emt 0:05:08]} 44. Ne6 {[%emt 0:09:04]} Rf2 {[%emt 0:03:06]} 45. Nd4 {[%emt 0:02:11]} Kh7 {[%emt 0:01:46]} 46. Ne2 {[%emt 0:00:35]} Rxe2 {[%emt 0:03:38]} 47. Kxe2 {[%emt 0:00:22]} Ng3+ {[%emt 0:00:04]} 48. Kf3 {[%emt 0:00:48]} e2 {[%emt 0:00:06]} 0-1

[Event "EYCC Girls-U16 2019"]
[Site "Bratislava"]
[Date "2019.08.04"]
[Round "3.24"]
[White "Levitan, Ronit"]
[Black "Taragelova, Martina"]
[Result "1/2-1/2"]
[ECO "B13"]
[WhiteElo "2022"]
[BlackElo "1719"]
[Annotator "NA"]
[PlyCount "65"]
[EventDate "2019.08.02"]
[EventType "swiss"]
[EventCountry "SVK"]
[SourceTitle "playchess.com"]
[Source "ChessBase"]
[SourceQuality "1"]
[TimeControl "40/5400+30:1800+30"]

1. e4 {[%emt 0:00:00]} c6 {[%emt 0:00:00]} 2. d4 {[%emt 0:00:00]} d5 {[%emt 0:00:02]} 3. exd5 {[%emt 0:00:00]} cxd5 {[%emt 0:00:10]} 4. c4 {[%emt 0:00:00]} Nf6 {[%emt 0:00:32]} 5. Nc3 {[%emt 0:00:12]} Nc6 {[%emt 0:00:16]} 6. Nf3 {[%emt 0:00:58]} g6 {[%emt 0:00:46]} 7. cxd5 {[%emt 0:01:24]} Nxd5 {[%emt 0:00:36]} 8. Qb3 {[%emt 0:03:02]} Nxc3 {[%emt 0:01:11]} 9. Bc4 {[%emt 0:01:15]} e6 {[%emt 0:01:09]} 10. bxc3 {[%emt 0:00:30]} Bg7 {[%emt 0:02:55]} 11. Ba3 {[%emt 0:04:53]} Bf8 {[%emt 0:02:18]} 12. Bxf8 {[%emt 0:03:31]} Kxf8 {[%emt 0:00:16]} 13. O-O {[%emt 0:06:12]} Kg7 {[%emt 0:02:31]} 14. Qc2 {[%emt 0:01:18]} b6 {[%emt 0:05:56]} 15. Qe2 {[%emt 0:07:09]} Bb7 {[%emt 0:05:53]} 16. Rfe1 {[%emt 0:10:44]} Rc8 {[%emt 0:03:04]} 17. Bb3 {[%emt 0:01:44]} Qd6 {[%emt 0:03:59]} 18. Rac1 {[%emt 0:04:59]} Rhd8 {[%emt 0:04:27]} 19. h4 {[%emt 0:07:17]} Ne7 {[%emt 0:06:26]} 20. h5 {[%emt 0:05:16]} Nd5 {[%emt 0:07:06]} 21. Bxd5 {[%emt 0:09:38]} Qxd5 {[%emt 0:02:17]} 22. hxg6 {[%emt 0:03:15]} hxg6 {[%emt 0:00:29]} 23. a4 {[%emt 0:05:25]} Qh5 {[%emt 0:04:39]} 24. Qe5+ {[%emt 0:02:48]} Qxe5 {[%emt 0:00:35]} 25. Nxe5 {[%emt 0:00:05]} Rc7 {[%emt 0:01:24]} 26. a5 {[%emt 0:12:14]} b5 {[%emt 0:07:57]} 27. Nd3 {[%emt 0:00:54]} Bd5 {[%emt 0:02:36]} 28. f3 {[%emt 0:02:14]} Bc4 {[%emt 0:00:49]} 29. Nb4 {[%emt 0:04:00]} Rdc8 {[%emt 0:03:39]} 30. Na6 {[%emt 0:00:31]} Rc6 {[%emt 0:00:23]} 31. Nb4 {[%emt 0:00:03]} R6c7 {[%emt 0:00:08]} 32. Na6 {[%emt 0:02:13]} Rc6 {[%emt 0:00:08]} 33. Nb4 {[%emt 0:00:20]} 1/2-1/2

[Event "EYCC Girls-U16 2019"]
[Site "Bratislava"]
[Date "2019.08.05"]
[Round "4.1"]
[White "Hryzlova, Sofiia"]
[Black "Waszczuk, Patrycja"]
[Result "0-1"]
[ECO "A00"]
[WhiteElo "1799"]
[BlackElo "2119"]
[Annotator "NA"]
[PlyCount "64"]
[EventDate "2019.08.02"]
[EventType "swiss"]
[EventCountry "SVK"]
[SourceTitle "playchess.com"]
[Source "ChessBase"]
[SourceQuality "1"]
[TimeControl "40/5400+30:1800+30"]

1. e3 {[%emt 0:02:20]} d5 {[%emt 0:00:00]} 2. b3 {[%emt 0:01:09]} e5 {[%emt 0:00:00]} 3. d4 {[%emt 0:04:01]} e4 {[%emt 0:02:24]} 4. c4 {[%emt 0:03:01]} c6 {[%emt 0:00:31]} 5. Nc3 {[%emt 0:00:56]} Be6 {[%emt 0:01:30]} 6. Qc2 {[%emt 0:03:04]} f5 {[%emt 0:06:15]} 7. Nh3 {[%emt 0:06:01]} Nf6 {[%emt 0:05:43]} 8. f3 {[%emt 0:05:37]} Bd6 {[%emt 0:08:41]} 9. Bd2 {[%emt 0:14:49]} a6 {[%emt 0:05:08]} 10. c5 {[%emt 0:07:43]} Bc7 {[%emt 0:01:07]} 11. Nf2 {[%emt 0:01:20]} O-O {[%emt 0:03:55]} 12. O-O-O {[%emt 0:05:53]} Nbd7 {[%emt 0:03:54]} 13. g4 {[%emt 0:07:31]} exf3 {[%emt 0:02:51]} 14. gxf5 {[%emt 0:07:21]} Ng4 {[%emt 0:01:31]} 15. Nxg4 {[%emt 0:01:39]} Bxf5 {[%emt 0:04:37]} 16. Nh6+ {[%emt 0:01:47]} gxh6 {[%emt 0:00:05]} 17. e4 {[%emt 0:02:21]} dxe4 {[%emt 0:10:55]} 18. Rg1+ {[%emt 0:04:30]} Kh8 {[%emt 0:02:20]} 19. Bxh6 {[%emt 0:01:00]} Rg8 {[%emt 0:00:09]} 20. Bc4 {[%emt 0:00:54]} Rg6 {[%emt 0:12:06]} 21. Qd2 {[%emt 0:00:06]} Qf6 {[%emt 0:03:59]} 22. Bg5 {[%emt 0:01:16]} Qf8 {[%emt 0:00:04]} 23. h4 {[%emt 0:01:05]} b5 {[%emt 0:01:27]} 24. cxb6 {[%emt 0:02:24]} Nxb6 {[%emt 0:00:12]} 25. Bf1 {[%emt 0:05:31]} h6 {[%emt 0:05:05]} 26. Be3 {[%emt 0:05:45]} Rxg1 {[%emt 0:00:09]} 27. Bxg1 {[%emt 0:00:19]} Qa3+ {[%emt 0:00:12]} 28. Qb2 {[%emt 0:00:35]} Bf4+ {[%emt 0:00:12]} 29. Kb1 {[%emt 0:00:24]} e3+ {[%emt 0:00:13]} 30. Bd3 {[%emt 0:00:32]} Bxd3+ {[%emt 0:00:12]} 31. Rxd3 {[%emt 0:00:05]} Qxb2+ {[%emt 0:00:02]} 32. Kxb2 {[%emt 0:00:09]} f2 {[%emt 0:01:00]} 0-1

[Event "EYCC Girls-U16 2019"]
[Site "Bratislava"]
[Date "2019.08.05"]
[Round "4.2"]
[White "Getman, Tatyana"]
[Black "Kuhar, Larisa"]
[Result "1/2-1/2"]
[ECO "D20"]
[WhiteElo "2143"]
[BlackElo "1894"]
[Annotator "NA"]
[PlyCount "67"]
[EventDate "2019.08.02"]
[EventType "swiss"]
[EventCountry "SVK"]
[SourceTitle "playchess.com"]
[Source "ChessBase"]
[SourceQuality "1"]
[TimeControl "40/5400+30:1800+30"]

1. d4 {[%emt 0:00:00]} d5 {[%emt 0:00:03]} 2. c4 {[%emt 0:00:00]} dxc4 {[%emt 0:00:31]} 3. e4 {[%emt 0:00:00]} e5 {[%emt 0:00:21]} 4. Nf3 {[%emt 0:00:34]} exd4 {[%emt 0:00:18]} 5. Bxc4 {[%emt 0:00:06]} Nc6 {[%emt 0:00:11]} 6. O-O {[%emt 0:07:57]} Be6 {[%emt 0:00:33]} 7. Bxe6 {[%emt 0:00:20]} fxe6 {[%emt 0:00:07]} 8. Qb3 {[%emt 0:01:14]} Qd7 {[%emt 0:00:12]} 9. Qxb7 {[%emt 0:02:41]} Rb8 {[%emt 0:00:09]} 10. Qa6 {[%emt 0:00:04]} Nf6 {[%emt 0:00:50]} 11. Nbd2 {[%emt 0:01:40]} Bd6 {[%emt 0:01:56]} 12. Re1 {[%emt 0:02:13]} Ng4 {[%emt 0:08:10]} 13. Nc4 {[%emt 0:17:39]} O-O {[%emt 0:19:18]} 14. h3 {[%emt 0:04:40]} Nge5 {[%emt 0:05:20]} 15. Ncxe5 {[%emt 0:09:45]} Nxe5 {[%emt 0:02:38]} 16. Nxe5 {[%emt 0:06:19]} Bxe5 {[%emt 0:00:02]} 17. Qxa7 {[%emt 0:07:31]} d3 {[%emt 0:04:33]} 18. Be3 {[%emt 0:00:19]} Rxb2 {[%emt 0:06:16]} 19. Rad1 {[%emt 0:05:11]} d2 {[%emt 0:03:21]} 20. Rf1 {[%emt 0:00:06]} Bc3 {[%emt 0:11:27]} 21. Qa3 {[%emt 0:02:23]} Qd3 {[%emt 0:01:41]} 22. Qc5 {[%emt 0:08:19]} Rfb8 {[%emt 0:09:48]} 23. Qc6 {[%emt 0:01:26]} h6 {[%emt 0:06:15]} 24. Qxe6+ {[%emt 0:00:47]} Kh7 {[%emt 0:00:53]} 25. Qf5+ {[%emt 0:03:07]} Kh8 {[%emt 0:00:13]} 26. Qf4 {[%emt 0:02:49]} Rxa2 {[%emt 0:05:14]} 27. Qxc7 {[%emt 0:01:28]} Rab2 {[%emt 0:00:25]} 28. Qf4 {[%emt 0:00:30]} R8b5 {[%emt 0:06:57]} 29. g3 {[%emt 0:02:35]} Be5 {[%emt 0:00:55]} 30. Qf8+ {[%emt 0:00:50]} Kh7 {[%emt 0:00:01]} 31. Qf5+ {[%emt 0:00:20]} Kh8 {[%emt 0:00:10]} 32. Qf8+ {[%emt 0:00:14]} Kh7 {[%emt 0:00:03]} 33. Qf5+ {[%emt 0:00:09]} Kh8 {[%emt 0:04:19]} 34. Qf8+ {[%emt 0:00:08]} 1/2-1/2

[Event "EYCC Girls-U16 2019"]
[Site "Bratislava"]
[Date "2019.08.05"]
[Round "4.4"]
[White "Siekanska, Zuzanna"]
[Black "Lehaci, Miruna-Daria"]
[Result "0-1"]
[ECO "E12"]
[WhiteElo "1570"]
[BlackElo "2201"]
[Annotator "NA"]
[PlyCount "92"]
[EventDate "2019.08.02"]
[EventType "swiss"]
[EventCountry "SVK"]
[SourceTitle "playchess.com"]
[Source "ChessBase"]
[SourceQuality "1"]
[TimeControl "40/5400+30:1800+30"]

1. d4 {[%emt 0:00:00]} Nf6 {[%emt 0:00:00]} 2. c4 {[%emt 0:00:00]} e6 {[%emt 0:00:00]} 3. Nf3 {[%emt 0:00:00]} b6 {[%emt 0:00:00]} 4. a3 {[%emt 0:00:00]} Ba6 {[%emt 0:00:00]} 5. e3 {[%emt 0:03:53]} d5 {[%emt 0:00:00]} 6. b3 {[%emt 0:02:09]} Be7 {[%emt 0:05:51]} 7. Bb2 {[%emt 0:00:36]} O-O {[%emt 0:00:42]} 8. Be2 {[%emt 0:00:50]} Nbd7 {[%emt 0:05:33]} 9. O-O {[%emt 0:01:00]} c6 {[%emt 0:01:52]} 10. cxd5 {[%emt 0:01:05]} Bxe2 {[%emt 0:00:15]} 11. Qxe2 {[%emt 0:00:07]} cxd5 {[%emt 0:04:06]} 12. Nbd2 {[%emt 0:01:24]} Qb8 {[%emt 0:09:35]} 13. Ne5 {[%emt 0:04:27]} Rc8 {[%emt 0:07:28]} 14. Rac1 {[%emt 0:02:57]} Qb7 {[%emt 0:01:21]} 15. f4 {[%emt 0:04:19]} Rxc1 {[%emt 0:04:18]} 16. Rxc1 {[%emt 0:00:07]} Rc8 {[%emt 0:00:18]} 17. Rxc8+ {[%emt 0:01:19]} Qxc8 {[%emt 0:00:04]} 18. Qd3 {[%emt 0:07:14]} Ne8 {[%emt 0:07:32]} 19. Nb1 {[%emt 0:19:48]} f6 {[%emt 0:04:13]} 20. Nxd7 {[%emt 0:04:30]} Qxd7 {[%emt 0:00:05]} 21. Nc3 {[%emt 0:00:40]} Nd6 {[%emt 0:00:48]} 22. Kf2 {[%emt 0:04:22]} f5 {[%emt 0:04:53]} 23. Qe2 {[%emt 0:02:51]} Ne8 {[%emt 0:09:46]} 24. Qb5 {[%emt 0:02:58]} Qc8 {[%emt 0:02:44]} 25. Qd3 {[%emt 0:02:47]} Nf6 {[%emt 0:00:58]} 26. h3 {[%emt 0:00:15]} Bxa3 {[%emt 0:07:31]} 27. Bxa3 {[%emt 0:04:45]} Qxc3 {[%emt 0:00:09]} 28. Qxc3 {[%emt 0:00:28]} Ne4+ {[%emt 0:00:04]} 29. Ke2 {[%emt 0:01:06]} Nxc3+ {[%emt 0:00:04]} 30. Kd3 {[%emt 0:00:22]} Ne4 {[%emt 0:00:18]} 31. Bb4 {[%emt 0:02:49]} Kf7 {[%emt 0:01:55]} 32. Be1 {[%emt 0:00:55]} h5 {[%emt 0:03:12]} 33. Kc2 {[%emt 0:00:57]} Ke8 {[%emt 0:00:40]} 34. Kb2 {[%emt 0:00:42]} Kd7 {[%emt 0:01:51]} 35. Ka3 {[%emt 0:00:15]} Kc6 {[%emt 0:01:25]} 36. Kb4 {[%emt 0:00:25]} a6 {[%emt 0:03:16]} 37. Ka4 {[%emt 0:00:10]} a5 {[%emt 0:01:39]} 38. b4 {[%emt 0:00:58]} axb4 {[%emt 0:00:04]} 39. Kxb4 {[%emt 0:00:07]} Nd6 {[%emt 0:00:00]} 40. Kc3 {[%emt 0:00:00]} Kb5 {[%emt 0:00:00]} 41. Kb3 {[%emt 0:06:15]} Nc4 {[%emt 0:02:15]} 42. Bf2 {[%emt 0:00:21]} Na5+ {[%emt 0:00:07]} 43. Kc3 {[%emt 0:00:53]} Ka4 {[%emt 0:00:04]} 44. Kc2 {[%emt 0:01:46]} b5 {[%emt 0:00:07]} 45. Kc3 {[%emt 0:02:05]} b4+ {[%emt 0:00:05]} 46. Kc2 {[%emt 0:01:06]} Ka3 {[%emt 0:00:53]} 0-1